bitfinex-derivatives/quotes_BNBF0:USTF0_20250709
["timestamp","ask_amount","ask_price","bid_price","bid_amount"]
[1752062797387,1.69070692,661.74,661.11,2.26057046]
[1752062797889,1.69070692,661.75,661.1,2.26057046]
[1752062798183,1.69070692,661.74,661.1,2.26057046]
[1752062798388,1.69070692,661.74,661.11,2.26057046]
[1752062798988,1.69070692,661.74,661.1,2.26057046]
[1752062799187,1.69070692,661.74,661.11,2.26057046]
[1752062799386,1.69070692,661.74,661.12,2.26057046]
[1752062799590,1.69070692,661.74,661.0,3.39085569]
[1752062799591,1.69070692,661.74,661.1,2.26057046]
[1752062800087,1.69070692,661.74,661.11,2.26057046]
[1752062800296,1.69070692,661.73,661.11,2.26057046]
[1752062800591,1.69070692,661.74,661.11,2.26057046]
[1752062801091,1.69070692,661.74,661.1,2.26057046]
[1752062801293,1.69070692,661.73,661.11,2.26057046]
[1752062801692,1.69070692,661.72,661.14,2.26057046]
[1752062801994,1.69070692,661.77,661.02,2.26057046]
[1752062802192,1.69070692,661.76,661.03,2.26057046]
[1752062802396,1.69070692,661.75,661.03,2.26057046]
[1752062803295,1.69070692,661.75,661.04,2.26057046]
[1752062804293,1.69070692,661.74,661.05,2.26057046]
[1752062804496,1.69070692,661.74,661.04,2.26057046]
[1752062805097,1.69070692,661.75,661.04,2.26057046]
[1752062805297,1.69070692,661.74,661.05,2.26057046]
[1752062806195,1.69070692,661.73,661.05,2.26057046]
[1752062806397,1.69070692,661.73,661.06,2.26057046]
[1752062806696,1.69070692,661.73,661.05,2.26057046]
[1752062807193,1.69070692,661.72,661.06,2.26057046]
[1752062808399,1.69070692,661.72,660.99,2.78]
[1752062808400,1.69070692,661.71,661.07,2.26057046]
[1752062811799,1.69070692,661.71,661.15,2.26057046]
[1752062812003,1.69070692,661.68,661.15,2.26057046]
[1752062813401,1.69070692,661.67,661.16,2.26057046]
[1752062814505,1.69070692,661.66,661.18,2.26057046]
[1752062814703,1.69070692,661.66,661.17,2.26057046]
[1752062816502,1.69070692,661.67,661.17,2.26057046]
[1752062817902,1.69070692,661.66,661.18,2.26057046]
[1752062818202,1.69070692,661.66,661.17,2.26057046]
[1752062820407,1.69070692,661.66,661.18,2.26057046]
[1752062821303,1.69070692,661.66,661.19,2.26057046]
[1752062821604,1.69070692,661.65,661.22,2.26057046]
[1752062822415,1.69070692,661.66,661.18,2.26057046]
[1752062822908,1.69070692,661.66,661.17,2.26057046]
[1752062823406,1.69070692,661.69,661.11,2.26057046]
[1752062823908,2.26302514,661.83,661.11,2.26057046]
[1752062824104,1.6999305,661.69,661.11,2.26057046]
[1752062824309,1.6999305,661.7,661.1,2.26057046]
[1752062824509,1.6999305,661.7,661.08,2.26057046]
[1752062825405,1.6999305,661.69,661.06,2.26057046]
[1752062825704,1.6999305,661.68,661.06,2.26057046]
[1752062826004,1.6999305,661.68,661.05,2.26057046]
[1752062827109,1.6999305,661.68,661.06,2.26057046]
[1752062827307,1.6999305,661.65,661.03,2.26057046]
[1752062827506,1.6999305,661.66,661.03,2.26057046]
[1752062828410,1.6999305,661.66,661.02,2.26057046]
[1752062828808,1.6999305,661.65,661.05,2.26057046]
[1752062829310,1.6999305,661.65,661.04,2.26057046]
[1752062829811,1.6999305,661.65,661.06,2.26057046]
[1752062830309,1.6999305,661.64,661.06,2.26057046]
[1752062830612,1.6999305,661.64,661.09,2.26057046]
[1752062831312,1.6999305,661.64,661.08,2.26057046]
[1752062832108,1.6999305,661.64,661.09,2.26057046]
[1752062832412,1.6999305,661.64,661.08,2.26057046]
[1752062834915,1.6999305,661.65,661.07,2.26057046]
[1752062835716,1.6999305,661.64,661.08,2.26057046]
[1752062837015,1.6999305,661.64,661.09,2.26057046]
[1752062837216,1.6999305,661.65,661.09,2.26057046]
[1752062838324,1.6999305,661.64,661.12,2.26057046]
[1752062838623,1.6999305,661.67,661.07,2.26057046]
[1752062838820,5.65756285,662.35,661.11,2.26057046]
[1752062838821,1.6999305,661.71,661.11,2.26057046]
[1752062839221,1.6999305,661.72,661.1,2.26057046]
[1752062839617,1.6999305,661.78,660.94,2.26057046]
[1752062840319,1.6999305,661.79,660.93,2.26057046]
[1752062840822,1.6999305,661.79,660.94,2.425]
[1752062843125,1.6999305,661.8,660.94,2.425]
[1752062845924,1.6999305,661.79,660.94,2.425]
[1752062849038,1.6999305,661.8,660.94,2.425]
[1752062849535,1.6999305,661.75,661.03,2.26057046]
[1752062849933,1.6999305,661.74,661.04,2.26057046]
[1752062852240,1.6999305,661.74,661.08,2.26057046]
[1752062852441,1.6999305,661.74,660.94,2.425]
[1752062852442,1.6999305,661.72,661.14,2.26057046]
[1752062852640,1.6999305,661.7,661.18,2.26057046]
[1752062852837,1.6999305,661.73,661.22,2.26057046]
[1752062853438,1.6999305,661.74,661.22,2.26057046]
[1752062853942,1.6999305,661.73,661.21,2.26057046]
[1752062854638,1.6999305,661.74,661.21,2.26057046]
[1752062855343,1.6999305,661.74,661.2,2.26057046]
[1752062855642,1.6999305,661.74,661.21,2.26057046]
[1752062857843,1.6999305,661.75,661.22,2.26057046]
[1752062858943,2.26302514,661.87,661.22,2.26057046]
[1752062859144,1.69785357,661.75,661.22,2.26057046]
[1752062859544,3.39453771,661.98,661.18,2.437]
[1752062859744,2.73006952,662.43,661.18,2.437]
[1752062860040,2.73006952,662.42,661.18,2.437]
[1752062860344,2.73006946,662.41,661.18,2.437]
[1752062860644,1.69781899,661.76,661.2,2.258553]
[1752062860843,3.39563798,662.0,661.2,2.258553]
[1752062861043,3.39563798,662.0,661.18,2.437]
[1752062861242,2.72983253,662.42,661.18,2.437]
[1752062861543,2.72983253,662.41,661.18,2.437]
[1752062861744,2.72983253,662.4,661.18,2.437]
[1752062861944,1.69777761,661.77,661.21,2.25843867]
[1752062862744,1.69777761,661.77,661.22,2.25843867]
[1752062863445,1.69777761,661.77,661.21,2.25843867]
[1752062863941,1.69777761,661.77,661.22,2.25843867]
[1752062864240,1.69777761,661.77,661.18,2.437]
[1752062864241,1.69777761,661.77,661.21,2.25843867]
[1752062864544,1.69777761,661.77,661.22,2.25843867]
[1752062865241,1.69777761,661.76,661.24,2.25843867]
[1752062865445,1.69777761,661.76,661.23,2.25843867]
[1752062865642,1.69777761,661.8,661.18,2.437]
[1752062865845,1.69777761,661.79,661.18,2.437]
[1752062866244,1.69777761,661.8,661.18,2.437]
[1752062867143,1.69777761,661.86,661.22,2.25843867]
[1752062867347,1.69777761,661.86,661.21,2.25843867]
[1752062867845,1.69777761,661.88,661.19,2.25843867]
[1752062868347,1.69777761,661.89,661.18,4.69543867]
[1752062869847,1.69777761,661.9,661.18,2.437]
[1752062870148,1.69777761,661.91,661.19,2.25843867]
[1752062870345,1.69777761,661.92,661.18,4.69543867]
[1752062870848,1.69777761,661.91,661.2,2.25843867]
[1752062871348,1.69777761,661.92,661.19,2.25843867]
[1752062873049,1.69777761,661.92,661.18,4.69543867]
[1752062873452,1.69777761,661.92,661.21,2.25843867]
[1752062874351,1.69777761,661.92,661.2,2.25843867]
[1752062874852,1.69777761,661.9,661.25,2.25843867]
[1752062875352,1.69777761,661.91,661.24,2.25843867]
[1752062875951,1.69777761,661.91,661.23,2.25843867]
[1752062876351,1.69777761,661.92,661.22,2.25843867]
[1752062876548,1.69777761,661.91,661.23,2.25843867]
[1752062876747,1.69777761,661.91,661.24,2.25843867]
[1752062878352,1.69777761,661.91,661.25,2.25843867]
[1752062879349,1.69777761,661.91,661.24,2.25843867]
[1752062879552,1.69777761,661.92,661.22,2.25843867]
[1752062879749,1.69777761,661.92,661.21,2.25843867]
[1752062880453,1.69777761,661.91,661.24,2.25843867]
[1752062880749,1.69777761,661.89,661.26,2.25843867]
[1752062882254,1.69777761,661.9,661.26,2.25843867]
[1752062882554,1.69777761,661.91,661.24,2.25843867]
[1752062883450,1.69777761,661.91,661.22,2.25843867]
[1752062884255,1.69777761,661.92,661.22,2.25843867]
[1752062884551,1.69777761,661.92,661.21,2.25843867]
[1752062891362,1.69777761,661.91,661.22,2.25843867]
[1752062891862,1.69777761,661.91,661.23,2.25843867]
[1752062892363,1.69777761,661.9,661.24,2.25843867]
[1752062892559,1.69777761,661.91,661.24,2.25843867]
[1752062892763,1.69777761,661.91,661.23,2.25843867]
[1752062893366,1.69777761,661.9,661.25,2.25843867]
[1752062893564,1.69777761,661.9,661.26,2.25843867]
[1752062894264,1.69777761,661.89,661.26,2.25843867]
[1752062894466,1.69777761,661.89,661.27,2.25843867]
[1752062896265,1.69777761,661.88,661.27,2.25843867]
[1752062898366,1.69777761,661.88,661.28,2.25843867]
[1752062901475,1.69777761,661.87,661.28,2.25843867]
[1752062901971,1.69777761,661.88,661.29,2.25843867]
[1752062903872,1.69777761,661.89,661.26,2.25843867]
[1752062904575,1.69777761,661.9,661.24,2.25843867]
[1752062905372,1.69777761,661.9,661.25,2.25843867]
[1752062905873,1.69777761,661.9,661.18,2.437]
[1752062905874,1.69777761,661.9,661.22,2.25843867]
[1752062906377,1.69777761,661.89,661.22,2.25843867]
[1752062908273,1.69777761,661.89,661.23,2.25843867]
[1752062910881,1.69777761,661.88,661.23,2.25843867]
[1752062911080,1.69777761,661.88,661.1,3.387658]
[1752062911081,1.69777761,661.88,661.24,2.25843867]
[1752062912385,1.69777761,661.87,661.24,2.25843867]
[1752062912685,1.69777761,661.88,661.25,4.36943867]
[1752062913082,1.69777761,661.88,661.25,2.111]
[1752062913484,1.69777761,661.87,661.26,2.25843867]
[1752062914188,1.69777761,661.86,661.28,2.25843867]
[1752062915783,5.65925873,662.59,661.25,2.111]
[1752062915784,1.69777761,661.85,661.3,2.25843867]
[1752062916186,1.69777761,661.85,661.31,2.25843867]
[1752062916488,1.69777761,661.85,661.29,2.25843867]
[1752062916688,1.69777761,661.87,661.31,2.25843867]
[1752062917385,1.69777761,661.88,661.29,2.25843867]
[1752062917988,1.69777761,661.88,661.28,2.25843867]
[1752062918485,1.69777761,661.88,661.29,2.25843867]
[1752062921988,1.69777761,661.87,661.29,2.25843867]
[1752062922388,1.69777761,661.87,661.3,2.25843867]
[1752062922983,1.69777761,661.87,661.31,2.25843867]
[1752062923585,1.69777761,661.86,661.31,2.25843867]
[1752062924286,1.69777761,661.86,661.32,2.25843867]
[1752062924989,1.69777761,661.86,661.31,2.25843867]
[1752062925186,1.69777761,661.86,661.32,2.25843867]
[1752062925387,1.69777761,661.86,661.31,2.25843867]
[1752062925692,1.69777761,661.85,661.32,2.25843867]
[1752062925887,1.69777761,661.85,661.33,2.25843867]
[1752062926192,1.69777761,661.85,661.32,2.25843867]
[1752062926392,1.69777761,661.84,661.34,2.25843867]
[1752062927190,1.69777761,661.83,661.37,2.25843867]
[1752062927690,1.69777761,661.83,661.38,2.25843867]
[1752062928592,1.69777761,661.84,661.35,2.25843867]
[1752062929091,1.69777761,661.85,661.31,2.25843867]
[1752062929297,1.69777761,661.86,661.3,2.25843867]
[1752062929992,1.69777761,661.86,661.29,2.25843867]
[1752062930193,1.69777761,661.87,661.29,2.25843867]
[1752062930992,1.69777761,661.87,661.27,2.25843867]
[1752062933593,1.69777761,661.88,661.28,2.25843867]
[1752062933993,1.69777761,661.87,661.28,2.25843867]
[1752062934296,1.69777761,661.88,661.28,2.25843867]
[1752062934595,1.69777761,661.87,661.28,2.25843867]
[1752062935295,2.26370349,662.02,661.28,2.25843867]
[1752062935498,1.69889359,661.87,661.28,2.25843867]
[1752062937504,1.69889359,661.87,661.29,1.943]
[1752062938704,1.69889359,661.87,661.29,4.20143867]
[1752062939104,1.69889359,661.86,661.31,2.25843867]
[1752062939304,1.69889359,661.88,661.29,1.943]
[1752062940405,1.69889359,661.87,661.29,1.943]
[1752062940601,1.69889359,661.86,661.29,1.943]
[1752062940900,1.69889359,661.86,661.29,4.20143867]
[1752062941200,1.69889359,661.88,661.29,1.943]
[1752062943704,1.69889359,661.87,661.29,1.943]
[1752062944102,1.69889359,661.86,661.29,1.943]
[1752062949101,1.69889359,661.85,661.29,1.943]
[1752062950806,1.69889359,661.86,661.29,1.943]
[1752062951006,1.69889359,661.85,661.29,1.943]
[1752062951602,1.69889359,661.84,661.29,1.943]
[1752062953308,2.26370349,661.99,661.29,1.943]
[1752062953503,1.69892781,661.85,661.29,1.943]
[1752062955610,1.69892781,661.84,661.29,1.943]
[1752062960509,1.69892781,661.83,661.29,1.943]
[1752062961213,1.69892781,661.84,661.29,1.943]
[1752062961413,1.69892781,661.83,661.29,1.943]
[1752062961911,1.69892781,661.84,661.29,1.943]
[1752062963114,1.69892781,661.82,661.3,2.25843867]
[1752062966016,1.69892781,661.82,661.31,2.25843867]
[1752062966816,1.69892781,661.82,661.32,2.25843867]
[1752062967513,1.69892781,661.82,661.29,1.943]
[1752062967716,1.69892781,661.86,661.29,1.943]
[1752062969915,0.98346668,662.01,661.29,1.943]
[1752062970219,1.69887489,661.86,661.29,1.943]
[1752062974419,1.69885504,661.86,661.29,1.943]
[1752062974815,1.69885504,661.88,661.29,1.943]
[1752062975618,1.69885504,662.02,661.29,1.943]
[1752062975821,1.69896945,661.97,661.29,1.943]
[1752062977317,1.69896945,661.95,661.29,1.943]
[1752062977923,1.69896945,661.96,661.29,1.943]
[1752062978221,1.69896945,661.95,661.29,1.943]
[1752062979624,1.69896945,661.95,660.86,2.25843867]
[1752062981527,2.28314129,662.21,660.86,2.25843867]
[1752062981823,1.69834351,661.95,660.87,2.25843867]
[1752062983123,1.69834351,661.94,660.89,2.25843867]
[1752062983328,1.69834351,661.94,660.91,2.25843867]
[1752062985229,1.69834351,661.87,661.06,2.25843867]
[1752062985530,1.69834351,661.85,661.12,2.25843867]
[1752062985926,1.69834351,661.83,661.16,2.25843867]
[1752062986134,1.69834351,661.82,661.19,2.25843867]
[1752062986932,1.69834351,661.82,661.2,2.25843867]
[1752062987232,1.69834351,661.81,661.22,2.25843867]
[1752062987732,1.69834351,661.81,661.23,2.25843867]
[1752062988633,1.69834351,661.8,661.25,2.25843867]
[1752062989229,1.69834351,661.8,661.24,2.25843867]
[1752062989733,1.69834351,661.82,661.18,2.25843867]
[1752062990033,1.69834351,661.83,661.18,2.25843867]
[1752062991029,1.69834351,661.82,661.18,2.25843867]
[1752062992836,1.69834351,661.82,661.19,2.25843867]
[1752062994233,1.69834351,661.84,661.16,2.25843867]
[1752062995240,1.69834351,661.86,661.11,2.25843867]
[1752062995538,1.69834351,661.95,661.08,0.26301569]
[1752062995737,1.69834351,661.94,661.08,0.26301569]
[1752062996135,1.69834351,661.96,661.09,2.25843867]
[1752062996334,1.69834351,661.98,661.08,0.26301569]
[1752062996638,1.69834351,662.08,661.14,2.25843867]
[1752062996839,1.69834351,662.25,661.31,2.25843867]
[1752062997035,1.69834351,662.22,661.39,2.25843867]
[1752062997239,1.69834351,662.23,661.38,2.25843867]
[1752062997438,1.69834351,662.26,661.39,2.25843867]
[1752062997636,1.69834351,662.2,661.5,2.25843867]
[1752062997836,1.69834351,662.17,661.47,2.25843867]
[1752062998035,1.69834351,662.16,661.47,2.25843867]
[1752062998241,1.69834351,662.18,661.45,2.25843867]
[1752062998740,1.69834351,662.24,661.28,2.25843867]
[1752062999241,1.69834351,662.26,661.26,2.25843867]
[1752062999838,1.69834351,662.2,661.21,2.25843867]
[1752063000137,1.69834351,662.16,661.17,2.25843867]
[1752063000935,1.69834351,662.15,661.16,2.25843867]
[1752063001339,1.69834351,662.16,661.16,2.25843867]
[1752063001839,1.69834351,662.03,661.28,2.25843867]
[1752063002038,1.69834351,662.03,661.08,0.26301569]
[1752063002039,1.69834351,662.01,661.33,2.25843867]
[1752063002439,1.69834351,661.93,661.24,2.25843867]
[1752063002738,1.69834351,661.92,661.25,2.25843867]
[1752063002941,1.69834351,661.92,661.24,2.25843867]
[1752063003142,1.69834351,661.91,661.24,2.25843867]
[1752063003342,1.69834351,661.91,661.23,2.25843867]
[1752063003542,1.69834351,661.92,661.23,2.25843867]
[1752063003742,1.69834351,661.93,661.24,2.25843867]
[1752063003943,1.69834351,661.93,661.25,2.25843867]
[1752063004841,1.69834351,661.92,661.25,2.25843867]
[1752063005041,1.69834351,661.91,661.24,2.25843867]
[1752063005545,1.69834351,661.91,661.23,2.25843867]
[1752063006045,1.69834351,661.91,661.24,2.25843867]
[1752063006242,1.69834351,661.92,661.24,2.25843867]
[1752063006641,1.69834351,661.91,661.25,2.25843867]
[1752063006941,1.69834351,661.92,661.25,2.25843867]
[1752063007342,1.69834351,661.93,661.23,2.25843867]
[1752063007542,1.69834351,661.93,661.21,2.25843867]
[1752063007743,1.69834351,661.98,661.1,2.25843867]
[1752063008347,1.69834351,661.98,661.09,2.25843867]
[1752063009643,1.69834351,661.99,661.1,2.25843867]
[1752063011144,1.69834351,662.0,661.08,0.26301569]
[1752063012551,1.69834351,662.03,661.08,0.26301569]
[1752063012951,1.69834351,662.01,661.08,0.26301569]
[1752063013448,1.69834351,661.98,661.09,2.25843867]
[1752063013851,1.69834351,661.99,661.09,2.25843867]
[1752063014252,1.69834351,661.98,661.08,2.52145436]
[1752063018148,1.69834351,661.97,661.08,0.26301569]
[1752063018750,1.69834351,661.97,661.08,2.52145436]
[1752063019251,1.69834351,661.96,661.1,2.25843867]
[1752063019949,1.69834351,661.97,661.11,2.25843867]
[1752063021555,1.69834351,661.96,661.13,2.25843867]
[1752063022852,1.69834351,661.94,661.2,2.25843867]
[1752063023355,1.69834351,661.93,661.24,2.25843867]
[1752063023655,1.69834351,661.92,661.27,2.25843867]
[1752063024555,1.69834351,661.92,661.26,2.25843867]
[1752063024952,1.69834351,661.94,661.21,2.25843867]
[1752063025152,1.69834351,661.95,661.21,2.25843867]
[1752063025551,1.69834351,661.95,661.2,2.25843867]
[1752063026351,1.69834351,661.95,661.21,2.25843867]
[1752063026551,1.69834351,661.94,661.24,2.25843867]
[1752063026754,1.69834351,661.93,661.25,2.25843867]
[1752063026955,1.69834351,661.93,661.26,2.25843867]
[1752063027553,1.69834351,661.94,661.25,2.25843867]
[1752063027753,1.69834351,661.93,661.26,2.25843867]
[1752063028357,1.69834351,661.94,661.23,2.25843867]
[1752063028553,1.69834351,661.95,661.22,2.25843867]
[1752063029555,1.69834351,661.95,661.21,2.25843867]
[1752063029758,1.69834351,661.94,661.23,2.25843867]
[1752063030054,1.69834351,661.94,661.25,2.25843867]
[1752063030460,1.69834351,661.95,661.22,2.25843867]
[1752063030855,1.69834351,661.94,661.23,2.25843867]
[1752063031355,1.69834351,661.95,661.22,2.25843867]
[1752063031559,1.69834351,661.93,661.22,2.25843867]
[1752063031861,1.69834351,661.94,661.23,2.25843867]
[1752063032257,1.69834351,661.95,661.21,2.25843867]
[1752063032457,1.69834351,661.95,661.08,3.65067369]
[1752063032458,1.69834351,661.95,661.2,2.25843867]
[1752063032859,1.69834351,661.95,661.21,2.25843867]
[1752063033457,1.69834351,661.95,661.2,2.25843867]
[1752063033858,1.69834351,661.93,661.24,2.25843867]
[1752063034564,1.69834351,661.95,661.21,2.25843867]
[1752063034763,1.69834351,661.94,661.22,2.25843867]
[1752063034963,1.69834351,661.97,661.16,2.25843867]
[1752063035864,1.69834351,661.99,661.11,2.25843867]
[1752063036063,1.69834351,662.02,661.08,2.52145436]
[1752063036262,1.69834351,661.99,661.11,2.25843867]
[1752063036564,1.69834351,661.99,661.1,2.25843867]
[1752063036966,1.69834351,662.0,661.1,2.25843867]
[1752063037565,1.69834351,661.99,661.11,2.25843867]
[1752063037967,1.69834351,661.99,661.12,2.25843867]
[1752063038968,1.69834351,662.01,661.14,2.25843867]
[1752063039267,1.69834351,662.0,661.14,2.25843867]
[1752063039469,1.69834351,662.07,661.13,2.25843867]
[1752063039864,1.69834351,662.07,661.14,2.25843867]
[1752063040268,2.26370349,662.26,661.14,2.25843867]
[1752063040469,3.39555523,662.44,661.08,0.26301569]
[1752063040470,1.69417719,662.18,661.25,2.25843867]
[1752063040766,1.69417719,662.19,661.26,2.25843867]
[1752063041170,1.69417719,662.2,661.26,2.25843867]
[1752063041866,1.69417719,662.2,661.25,2.25843867]
[1752063042270,1.69417719,662.19,661.24,2.25843867]
[1752063042566,1.69417719,662.18,661.23,2.25843867]
[1752063042769,1.69417719,662.19,661.24,2.25843867]
[1752063042967,1.69417719,662.18,661.24,2.25843867]
[1752063043266,1.69417719,662.19,661.24,2.25843867]
[1752063043572,1.69417719,662.18,661.24,2.25843867]
[1752063044173,1.69417719,662.19,661.24,2.25843867]
[1752063045471,1.69417719,662.2,661.24,2.25843867]
[1752063045972,1.69417719,662.2,661.25,2.979]
[1752063046472,1.69417719,662.19,661.25,2.979]
[1752063047573,1.69417719,662.18,661.25,5.23743867]
[1752063048169,1.69417719,662.19,661.25,2.979]
[1752063049268,1.69417719,662.15,661.32,2.25843867]
[1752063049973,1.69417719,662.15,661.25,2.979]
[1752063049974,1.69417719,662.15,661.33,2.25843867]
[1752063050471,1.69417719,662.29,661.27,2.25843867]
[1752063051072,1.69417719,662.29,661.26,2.25843867]
[1752063051674,1.69417719,662.29,661.25,5.23743867]
[1752063051976,1.69417719,662.3,661.26,2.25843867]
[1752063052276,1.69417719,662.26,661.36,2.25843867]
[1752063052477,1.69417719,662.25,661.39,2.25843867]
[1752063052775,1.69417719,662.26,661.41,2.25843867]
[1752063053275,1.69417719,662.27,661.4,2.25843867]
[1752063053477,1.69417719,662.27,661.39,2.25843867]
[1752063055173,1.69417719,662.27,661.38,2.25843867]
[1752063056177,1.69417719,662.27,661.37,2.25843867]
[1752063057880,1.69417719,662.27,661.38,2.25843867]
[1752063059080,1.69417719,662.27,661.37,2.25843867]
[1752063059980,1.69417719,662.27,661.38,2.25843867]
[1752063061981,1.69417719,662.25,661.42,2.25843867]
[1752063062382,1.69417719,662.25,661.44,2.25843867]
[1752063062682,1.69417719,662.24,661.46,2.25843867]
[1752063063079,1.69417719,662.24,661.45,2.25843867]
[1752063065283,1.69417719,662.24,661.44,2.25843867]
[1752063066385,1.69417719,662.24,661.43,2.25843867]
[1752063066780,1.69417719,662.25,661.44,2.25843867]
[1752063067285,1.69417719,662.31,661.28,2.25843867]
[1752063067985,1.69417719,662.31,661.27,2.25843867]
[1752063070686,1.69417719,662.31,661.26,2.25843867]
[1752063071288,1.69417719,662.31,661.25,5.23743867]
[1752063071683,1.69417719,662.29,661.25,2.979]
[1752063074090,1.69417719,662.28,661.25,2.979]
[1752063074390,1.69417719,662.29,661.25,2.979]
[1752063075187,1.69417719,662.28,661.25,2.979]
[1752063076393,1.69417719,662.24,661.34,2.25843867]
[1752063077595,1.69417719,662.22,661.34,2.25843867]
[1752063078797,1.69417719,662.22,661.35,2.25843867]
[1752063079097,1.69417719,662.23,661.35,2.25843867]
[1752063079597,1.69417719,662.22,661.38,2.25843867]
[1752063079802,1.69417719,662.22,661.36,2.25843867]
[1752063080200,1.69417719,662.22,661.37,2.25843867]
[1752063081305,1.69417719,662.24,661.32,2.25843867]
[1752063082301,1.69417719,662.24,661.33,2.25843867]
[1752063083706,1.69417719,662.24,661.32,2.25843867]
[1752063084102,1.69417719,662.24,661.33,2.25843867]
[1752063084902,1.69417719,662.24,661.32,2.25843867]
[1752063085307,1.69417719,662.23,661.33,2.25843867]
[1752063085806,1.69417719,662.24,661.33,2.25843867]
[1752063086106,1.69417719,662.27,661.26,2.25843867]
[1752063087205,1.69417719,662.27,661.27,2.25843867]
[1752063088105,1.69417719,662.27,661.28,2.25843867]
[1752063089209,1.69417719,662.26,661.28,2.25843867]
[1752063089605,1.69417719,662.26,661.29,2.25843867]
[1752063090607,1.69417719,662.27,661.27,2.25843867]
[1752063091005,1.69417719,662.25,661.28,2.25843867]
[1752063091411,1.69417719,662.23,661.27,2.25843867]
[1752063093215,1.69417719,662.16,661.25,2.979]
[1752063094108,1.69417719,662.15,661.25,2.979]
[1752063094312,1.69417719,662.12,661.29,2.25843867]
[1752063095216,1.69417719,662.12,661.3,2.25843867]
[1752063096212,1.69417719,662.11,661.29,2.25843867]
[1752063097216,1.69417719,662.1,661.31,2.25843867]
[1752063098215,1.69417719,662.09,661.32,2.25843867]
[1752063099311,1.69417719,662.08,661.33,2.25843867]
[1752063100115,0.98058166,662.23,661.33,2.25843867]
[1752063100313,1.69574899,662.07,661.32,2.25843867]
[1752063100515,1.69574899,662.05,661.35,2.25843867]
[1752063101012,1.69574899,662.05,661.37,2.25843867]
[1752063101215,1.69574899,662.04,661.38,2.25843867]
[1752063101615,1.69574899,662.04,661.39,2.25843867]
[1752063101917,1.69574899,662.03,661.41,2.25843867]
[1752063102216,1.69574899,662.04,661.4,2.25843867]
[1752063102519,1.69574899,662.03,661.41,2.25843867]
[1752063104816,1.69574899,662.03,661.42,2.153]
[1752063105117,1.69574899,662.04,661.42,2.153]
[1752063105417,1.69574899,662.03,661.42,2.153]
[1752063105816,1.69574899,662.02,661.44,2.25843867]
[1752063108021,1.69574899,662.02,661.42,2.153]
[1752063108022,1.69574899,662.03,661.43,2.25843867]
[1752063108620,1.69574899,662.09,661.42,2.153]
[1752063108920,1.69574899,662.12,661.42,2.153]
[1752063109216,1.69574899,662.13,661.42,2.153]
[1752063110819,1.69574899,662.12,661.42,2.153]
[1752063111218,1.69574899,662.13,661.42,2.153]
[1752063113720,1.69574899,662.14,661.42,2.153]
[1752063113920,1.69574899,662.17,661.42,2.153]
[1752063114720,1.69574899,662.16,661.42,2.153]
[1752063116026,1.69574899,662.13,661.42,2.153]
[1752063118128,1.69574899,662.19,661.45,2.25843867]
[1752063118527,1.69574899,662.19,661.46,2.25843867]
[1752063119728,1.69574899,662.19,661.45,2.25843867]
[1752063120724,1.69574899,662.19,661.44,2.25843867]
[1752063120927,1.69574899,662.2,661.45,2.25843867]
[1752063121624,1.69574899,662.19,661.46,2.25843867]
[1752063122230,1.69574899,662.2,661.45,2.25843867]
[1752063122426,1.69574899,662.22,661.48,2.25843867]
[1752063125430,1.69574899,662.23,661.46,2.25843867]
[1752063125628,1.69574899,662.3,661.52,2.25843867]
[1752063128434,1.69574899,662.31,661.51,2.25843867]
[1752063128831,1.69574899,662.31,661.52,2.25843867]
[1752063129536,1.69574899,662.31,661.51,2.25843867]
[1752063131637,1.69574899,662.31,661.52,2.25843867]
[1752063132138,1.69574899,662.3,661.54,2.25843867]
[1752063132638,1.69574899,662.31,661.52,2.25843867]
[1752063133335,1.69574899,662.32,661.52,2.25843867]
[1752063135234,1.69574899,662.3,661.56,2.25843867]
[1752063137039,1.69574899,662.3,661.57,2.25843867]
[1752063137939,1.69574899,662.3,661.58,2.25843867]
[1752063139339,1.69574899,662.3,661.57,2.25843867]
[1752063140341,1.69574899,662.33,661.51,2.25843867]
[1752063141039,2.72368667,662.47,661.51,2.25843867]
[1752063141237,1.69227296,662.33,661.51,2.25843867]
[1752063141440,1.69227296,662.34,661.49,2.25843867]
[1752063141640,1.69227296,662.35,661.48,2.25843867]
[1752063141837,1.69227296,662.35,661.49,2.25843867]
[1752063142242,1.69227296,662.36,661.48,2.25843867]
[1752063142541,1.69227296,662.35,661.48,2.25843867]
[1752063142939,1.69227296,662.38,661.49,2.25843867]
[1752063143142,1.69227296,662.39,661.49,2.25843867]
[1752063144042,1.69227296,662.4,661.47,2.25843867]
[1752063144640,1.69227296,662.4,661.46,2.25843867]
[1752063145344,1.69227296,662.4,661.45,2.25843867]
[1752063145843,1.69227296,662.4,661.46,2.25843867]
[1752063146043,1.69227296,662.41,661.46,2.25843867]
[1752063147342,1.69227296,662.45,661.49,2.25843867]
[1752063147744,1.69227296,662.43,661.52,2.25843867]
[1752063148447,1.69227296,662.44,661.52,2.25843867]
[1752063149147,1.69227296,662.44,661.51,2.25843867]